bitfinex-derivatives/quotes_ETHF0:USTF0_20260305
["timestamp","ask_amount","ask_price","bid_price","bid_amount"]
[1772751982188,0.63613162,2080.8,2079.8,2.59788696]
[1772751982492,0.63613162,2080.8,2079.9,0.56399786]
[1772751983493,0.39563492,2080.7,2079.9,0.56399786]
[1772751985995,0.63450386,2080.8,2080.0,0.56399786]
[1772751986196,0.4000386,2081.0,2080.1,0.56399786]
[1772751986393,0.4000386,2081.0,2080.2,0.56399786]
[1772751986593,0.4000386,2081.0,2080.4,0.56399786]
[1772751987396,0.4000386,2081.0,2080.2,0.56399786]
[1772751987895,0.4000386,2081.0,2080.3,0.56399786]
[1772751989898,0.4000386,2081.0,2080.4,0.58889608]
[1772751991501,0.0053468,2081.0,2080.4,0.58889608]
[1772751992001,0.40080361,2081.0,2080.4,0.58889608]
[1772752004918,8.31380361,2081.0,2080.4,0.58889608]
[1772752005115,0.40080361,2081.0,2080.4,0.58889608]
[1772752006815,0.399642,2081.0,2080.4,0.58889608]
[1772752013018,0.39145035,2080.4,2079.9,0.58889608]
[1772752016724,0.39149972,2080.5,2079.9,0.58889608]
[1772752016928,0.39149972,2080.7,2080.1,0.58889608]
[1772752018127,0.38578804,2080.5,2079.9,0.58889608]
[1772752018329,8.16826,2080.9,2079.5,40.8]
[1772752018330,0.38578804,2080.3,2079.7,0.58889608]
[1772752018928,0.38578804,2080.3,2079.6,0.58889608]
[1772752019128,0.38571634,2080.1,2079.6,0.58889608]
[1772752021029,8.31891622,2080.5,2079.9,0.5608192]
[1772752021422,0.38591304,2080.4,2079.9,0.5608192]
[1772752026933,0.54651629,2080.1,2079.5,0.5608192]
[1772752027534,0.54651629,2079.9,2079.5,0.5608192]
[1772752028033,0.54651629,2079.9,2079.4,0.5608192]
[1772752028233,0.54651629,2079.7,2079.3,0.56698561]
[1772752028428,0.54651629,2079.7,2079.3,0.00616641]
[1772752028631,0.54651629,2079.7,2079.1,0.5608192]
[1772752029234,0.54651629,2079.5,2079.0,0.5608192]
[1772752029637,0.54651629,2079.4,2079.0,0.00599541]
[1772752029838,0.54651629,2079.4,2078.8,0.5608192]
[1772752030039,0.54651629,2079.4,2078.9,0.5608192]
[1772752030439,0.54651629,2079.4,2079.0,0.5608192]
[1772752030940,0.54651629,2079.4,2079.0,0.56655453]
[1772752031131,0.55211726,2079.5,2079.0,0.56655453]
[1772752040548,0.00560097,2079.5,2079.0,0.56655453]
[1772752040755,0.78691629,2079.7,2079.0,0.56655453]
[1772752041547,7.97,2079.8,2079.0,0.56655453]
[1772752041851,8.52130169,2079.8,2079.0,0.56655453]
[1772752042249,0.55130169,2079.8,2079.0,0.56655453]
[1772752042454,8.52230169,2079.8,2079.0,0.56655453]
[1772752044257,0.54651629,2079.7,2079.0,0.56655453]
[1772752044952,7.9757854,2079.8,2079.0,0.56655453]
[1772752045158,0.0047854,2079.8,2079.0,0.56655453]
[1772752046065,0.54651629,2080.0,2079.0,0.56655453]
[1772752046957,0.55171212,2080.0,2079.0,0.56655453]
[1772752047160,0.00519583,2080.0,2079.0,0.56655453]
[1772752047360,0.00519583,2080.0,2079.3,0.5608192]
[1772752050466,0.00519583,2080.0,2079.3,2.59495334]
[1772752051267,0.00519583,2080.0,2079.4,0.55461816]
[1772752051667,0.57256227,2080.3,2079.4,0.55461816]
[1772752052567,0.57777481,2080.3,2079.4,0.55461816]
[1772752053870,0.57256227,2080.1,2079.4,0.55461816]
[1772752063071,0.57256227,2079.9,2079.4,0.55461816]
[1772752063279,0.57256227,2079.9,2079.1,0.55461816]
[1772752066078,0.57256227,2079.7,2079.1,0.55461816]
[1772752069381,0.57256227,2079.7,2079.0,0.00573533]
[1772752069871,0.57256227,2079.7,2079.0,0.56035349]
[1772752070980,0.57256227,2079.5,2079.0,0.00573533]
[1772752071174,0.57256227,2079.3,2078.5,0.55461816]
[1772752071378,0.57256227,2079.3,2078.6,40.8]
[1772752071679,0.57256227,2079.3,2078.7,0.55461816]
[1772752072078,0.57256227,2079.3,2078.7,0.55970995]
[1772752078580,0.24041,2079.6,2078.7,0.55970995]
[1772752078581,0.57256227,2079.5,2078.7,0.55970995]
[1772752079977,0.57256227,2079.5,2078.8,0.59188967]
[1772752080880,0.56448815,2079.9,2079.1,0.59188967]
[1772752085990,0.56448815,2079.1,2078.7,0.59698146]
[1772752089087,0.56448815,2079.1,2078.7,0.00509179]
[1772752089286,0.56448815,2079.1,2078.6,0.59188967]
[1772752090189,0.56448815,2079.1,2078.6,0.5972978]
[1772752091088,0.56448815,2079.3,2078.6,0.5972978]
[1772752092994,0.56448815,2079.6,2078.6,0.5972978]
[1772752093189,0.56448815,2079.4,2078.6,0.5972978]
[1772752094098,0.56448815,2079.4,2078.8,0.59188967]
[1772752096697,0.56448815,2079.4,2078.7,0.59188967]
[1772752096998,0.56448815,2079.6,2078.9,0.59188967]
[1772752097692,0.56448815,2079.6,2079.1,0.59188967]
[1772752099102,0.80489815,2079.7,2079.1,0.59188967]
[1772752100396,0.56448815,2079.7,2079.1,0.59188967]
[1772752101296,0.56448815,2079.9,2079.1,0.59188967]
[1772752101498,6.06101616,2079.8,2079.1,0.59188967]
[1772752101697,0.56448815,2079.8,2079.1,0.59188967]
[1772752103100,0.56448815,2080.0,2079.1,0.59188967]
[1772752103299,0.56448815,2080.0,2079.3,0.59188967]
[1772752105801,0.56448815,2080.0,2079.2,40.8]
[1772752106095,0.56448815,2080.0,2079.1,0.59188967]
[1772752106499,0.56448815,2080.0,2079.2,0.59188967]
[1772752110507,0.56448815,2080.0,2079.4,0.58608691]
[1772752113806,0.78308079,2080.2,2079.6,0.58608691]
[1772752114008,0.54273079,2080.1,2079.6,0.58608691]
[1772752116504,0.54273079,2080.2,2079.8,0.58608691]
[1772752126020,0.00521254,2080.3,2079.8,0.58608691]
[1772752126220,0.54794333,2080.3,2079.8,0.58608691]
[1772752132618,0.00521254,2080.3,2079.8,0.58608691]
[1772752132821,0.54273079,2080.2,2079.6,0.58608691]
[1772752135517,0.54794333,2080.3,2079.8,0.58608691]
[1772752140723,0.00521254,2080.3,2079.8,0.58608691]
[1772752140924,0.59305532,2080.9,2080.2,0.54688634]
[1772752141935,0.59770272,2080.9,2080.2,0.54688634]
[1772752143432,0.59305532,2080.8,2080.2,0.54688634]
[1772752144626,0.59305532,2080.8,2080.0,0.54688634]
[1772752152843,0.59305532,2080.6,2080.0,0.54688634]
[1772752153636,2.03959757,2080.9,2080.0,0.54688634]
[1772752153843,0.59305532,2080.8,2080.1,0.54688634]
[1772752154343,0.59305532,2080.4,2079.8,6.57948468]
[1772752154540,0.59305532,2080.4,2079.8,0.54688634]
[1772752160455,0.59305532,2080.3,2079.8,0.54688634]
[1772752163455,0.59305532,2080.3,2079.6,0.54688634]
[1772752164453,0.59305532,2080.5,2079.6,0.54688634]
[1772752164659,0.59305532,2080.5,2080.0,0.54688634]
[1772752168053,0.59305532,2080.5,2079.9,0.54688634]
[1772752168359,0.59305532,2080.1,2079.6,0.54688634]
[1772752169358,0.57020523,2080.3,2079.7,0.54944826]
[1772752175767,0.57020523,2080.3,2079.6,0.59407114]
[1772752180967,0.59659281,2080.1,2079.6,0.59407114]
[1772752189269,4.02251741,2080.6,2079.6,0.59407114]
[1772752189477,0.59659281,2080.4,2079.8,0.59407114]
[1772752191780,0.59659281,2080.8,2080.1,0.59407114]
[1772752193081,0.60124021,2080.9,2080.2,0.59407114]
[1772752193575,0.60124021,2080.9,2080.4,0.59407114]
[1772752193882,0.60124021,2080.9,2080.4,0.59949466]
[1772752199389,0.60124021,2080.9,2080.4,0.00542352]
[1772752200489,0.60124021,2080.9,2080.4,0.57844334]
[1772752205596,0.60124021,2080.9,2080.4,0.00542352]
[1772752208197,0.60124021,2080.9,2080.4,0.57844334]
[1772752209299,0.60124021,2080.9,2080.4,0.00542352]
[1772752209502,0.58962439,2080.9,2080.4,0.57844334]
[1772752209696,0.58962439,2080.9,2080.4,0.00542352]
[1772752211799,0.58497699,2080.7,2080.1,40.8]
[1772752212096,0.58497699,2080.7,2080.0,0.57301982]
[1772752212802,0.58497699,2080.5,2080.0,0.00510497]
[1772752216099,0.58497699,2080.5,2080.0,0.57812479]
[1772752216299,0.0046474,2080.9,2080.0,0.57812479]
[1772752216300,0.58497699,2080.7,2080.0,0.57812479]
[1772752217403,0.58497699,2080.6,2080.0,0.00510497]
[1772752218996,0.58497699,2080.4,2079.7,0.57301982]
[1772752219202,0.58497699,2080.4,2079.6,0.57301982]
[1772752219401,0.58497699,2080.4,2079.6,41.37301982]
[1772752220006,0.58497699,2080.4,2079.6,41.37863475]
[1772752221006,0.58497699,2080.4,2079.6,0.57863475]
[1772752223906,0.58497699,2080.5,2079.7,0.57301982]
[1772752225111,0.24032,2080.4,2079.7,0.57301982]
[1772752225310,0.58497699,2080.3,2079.7,0.57301982]
[1772752225711,0.58497699,2080.3,2079.6,0.00561493]
[1772752226203,0.58497699,2080.3,2079.6,0.57863475]
[1772752234616,0.58063616,2080.1,2079.6,0.00561493]
[1772752234817,0.58063616,2079.8,2079.1,0.58132619]
[1772752235013,0.58063616,2079.8,2079.2,0.58132619]
[1772752235817,0.58063616,2079.8,2079.2,0.58519588]
[1772752236416,0.58063616,2079.8,2079.2,0.00386969]
[1772752236617,0.58063616,2079.6,2079.2,0.00386969]
[1772752236919,0.58063616,2079.6,2079.2,0.58519588]
[1772752241616,0.58063616,2079.6,2079.2,0.00386969]
[1772752241817,0.58063616,2079.6,2079.0,0.58132619]
[1772752242720,0.58063616,2079.6,2079.0,0.58551183]
[1772752244523,8.0204,2079.7,2078.6,0.37379895]
[1772752244524,0.58063616,2079.2,2078.6,0.37379895]
[1772752244723,0.58063616,2079.2,2078.7,0.37379457]
[1772752245422,0.58626991,2079.2,2078.7,0.37740716]
[1772752249231,7.78,2079.5,2079.1,0.3772933]
[1772752249530,0.58063616,2079.4,2079.1,0.3772933]
[1772752250228,0.58675548,2079.4,2079.1,0.3772933]
[1772752252527,0.58675548,2079.4,2078.9,0.58132619]
[1772752253431,0.58675548,2079.4,2078.7,0.58493878]
[1772752254932,0.58063616,2079.2,2078.7,0.58493878]
[1772752255131,0.58063616,2079.0,2078.5,0.58132619]
[1772752256135,0.58063616,2079.0,2078.5,0.00406636]
[1772752256332,0.58063616,2079.0,2078.5,41.38539255]
[1772752256625,0.58063616,2079.0,2078.5,0.58539255]
[1772752257135,0.58063616,2079.0,2078.6,0.58132619]
[1772752257929,0.58063616,2079.0,2078.5,0.00406636]
[1772752258133,0.58063616,2079.0,2078.5,0.58539255]
[1772752260537,0.59339048,2079.2,2078.9,0.55960948]
[1772752260741,2.627668,2079.2,2078.5,0.00406636]
[1772752260941,0.59339048,2079.1,2078.5,0.00406636]
[1772752262036,0.59339048,2078.9,2078.5,0.00406636]
[1772752262233,0.59339048,2078.7,2078.2,0.55960948]
[1772752262633,0.59339048,2078.7,2078.3,0.55960948]
[1772752263344,8.36639048,2079.1,2078.7,0.55960948]
[1772752263541,0.59339048,2079.1,2078.7,0.55960948]
[1772752264237,0.59339048,2079.2,2078.9,0.55960948]
[1772752264540,0.59339048,2079.3,2078.9,0.55960948]
[1772752264838,0.5995098,2079.4,2079.1,0.55960948]
[1772752265040,0.59339048,2079.5,2079.1,0.55960948]
[1772752266045,0.59848619,2079.5,2079.1,0.55960948]
[1772752268447,0.00509571,2079.5,2079.1,0.55960948]
[1772752268948,0.59848619,2079.5,2079.1,0.55960948]
[1772752269147,0.00509571,2079.5,2079.3,0.55960948]
[1772752269350,0.59339048,2079.7,2079.3,0.55960948]
[1772752269946,0.59339048,2079.7,2079.2,2.03427752]
[1772752269947,0.59339048,2079.7,2079.1,0.55960948]
[1772752270145,0.59339048,2079.7,2079.0,0.55960948]
[1772752270345,0.59888114,2079.7,2079.0,0.55960948]
[1772752272547,0.59339048,2079.5,2078.6,2.03427752]
[1772752272751,0.59339048,2079.3,2078.7,0.55960948]
[1772752272951,8.36839048,2079.3,2078.7,0.55960948]
[1772752275652,0.59339048,2079.2,2078.7,0.55960948]
[1772752276460,0.59339048,2079.1,2078.5,0.55960948]
[1772752276757,0.59339048,2079.1,2078.3,0.00351676]
[1772752276953,0.59339048,2079.1,2078.3,0.56312624]
[1772752277455,0.59339048,2079.1,2078.3,0.55960948]
[1772752277753,0.59339048,2079.1,2078.4,0.55960948]
[1772752278455,0.59339048,2079.1,2078.4,0.56408828]
[1772752279159,0.59339048,2078.9,2078.4,0.56408828]
[1772752279350,0.24046,2079.2,2078.4,2.5983658]
[1772752279557,0.59339048,2079.1,2078.7,0.55960948]
[1772752280156,0.59339048,2079.1,2078.6,2.03427752]
[1772752280357,0.59339048,2079.1,2078.6,2.593887]
[1772752282057,0.59339048,2079.1,2078.7,0.55960948]
[1772752282257,0.59339048,2079.2,2078.7,0.55960948]
[1772752282659,8.37539048,2079.3,2078.9,0.55960948]
[1772752282860,0.59339048,2079.2,2078.9,0.55960948]
[1772752283560,8.18701144,2079.3,2078.9,0.55960948]
[1772752283760,0.59339048,2079.2,2078.7,0.55960948]
[1772752283961,0.59339048,2079.2,2078.5,0.55960948]
[1772752286761,0.59339048,2079.2,2078.7,0.55960948]
[1772752292064,8.3424868,2079.3,2078.7,0.55960948]
[1772752293762,0.5534868,2079.2,2078.7,0.55960948]
[1772752295567,8.3444868,2079.3,2078.7,0.55960948]
[1772752296566,0.5534868,2079.2,2078.7,0.55960948]
[1772752301773,7.791,2079.3,2078.7,0.55960948]
[1772752301970,8.3444868,2079.3,2078.7,0.55960948]
[1772752302277,0.5534868,2079.3,2078.7,0.55960948]
[1772752302475,7.798,2079.4,2078.7,0.55960948]
[1772752302674,8.3514868,2079.4,2078.7,0.55960948]
[1772752303869,0.5534868,2079.3,2078.7,0.55960948]
[1772752304467,0.5534868,2079.2,2078.4,6.03707714]
[1772752304674,0.5534868,2079.2,2078.4,0.59379371]
[1772752306477,0.5534868,2079.0,2078.4,0.59379371]
[1772752306677,0.5534868,2079.2,2078.5,0.58931491]
[1772752306874,0.5534868,2079.2,2078.4,8.07290764]
[1772752306875,8.3554868,2079.2,2078.6,0.58931491]
[1772752307278,0.5534868,2079.1,2078.6,0.58931491]
[1772752311982,0.5534868,2079.1,2078.4,6.03707714]
[1772752312284,0.5534868,2079.1,2078.4,6.62639205]
[1772752312580,0.5534868,2079.1,2078.5,0.58931491]
[1772752318179,0.5534868,2079.3,2078.5,0.58931491]
[1772752318384,8.3684868,2079.3,2078.6,0.58931491]
[1772752318883,0.5534868,2079.2,2078.6,0.58931491]
[1772752320480,0.56870004,2079.6,2078.6,0.58931491]
[1772752320687,0.5741907,2079.7,2078.8,0.55887829]
[1772752323287,0.24035,2080.2,2079.3,0.55887829]
[1772752323592,0.46828543,2080.1,2079.3,0.55887829]
[1772752323789,0.46828543,2080.1,2079.4,40.8]
[1772752324087,0.46828543,2080.1,2079.5,0.55887829]
[1772752324388,0.47257317,2080.1,2079.5,0.55887829]
[1772752331194,0.47257317,2080.1,2079.1,0.55887829]
[1772752331694,0.47257317,2080.1,2079.2,0.55887829]
[1772752333993,0.48634762,2079.9,2079.2,0.55887829]
[1772752334196,0.48634762,2079.9,2079.1,0.55887829]
[1772752334797,8.29134762,2079.9,2079.1,0.55887829]
[1772752335098,0.48681239,2079.8,2079.1,0.55887829]
[1772752337197,0.48681239,2079.8,2079.0,0.55887829]
[1772752344506,0.56870004,2079.6,2079.0,0.55887829]
[1772752345712,0.56870004,2079.6,2078.9,0.55887829]
[1772752347304,0.56870004,2079.6,2078.8,0.55887829]
[1772752350611,8.34470004,2079.6,2078.9,0.54692361]
[1772752351213,0.55678879,2079.5,2078.9,0.54692361]
[1772752360724,0.79718879,2079.7,2078.9,0.54692361]
[1772752360925,0.79718879,2079.7,2079.1,0.54692361]
[1772752361125,0.55678879,2079.6,2079.1,0.54692361]
[1772752367430,0.55678879,2079.4,2078.7,13.59157609]
[1772752367731,0.55678879,2079.1,2078.5,0.54692361]
[1772752367933,0.79725879,2079.2,2078.7,0.54692361]
[1772752368134,0.24047,2079.2,2078.7,0.54692361]
[1772752368434,0.55678879,2079.2,2078.7,0.54692361]
[1772752368636,8.32678879,2079.3,2078.7,0.54692361]
[1772752369031,0.55678879,2079.3,2078.7,0.54692361]
[1772752369231,0.55678879,2079.5,2078.9,0.54692361]
[1772752377644,0.55678879,2079.9,2079.1,0.54692361]
[1772752377950,0.55678879,2079.7,2079.1,0.54692361]
[1772752380549,0.57051025,2079.9,2079.3,0.54191085]
[1772752380852,0.57051025,2079.9,2079.5,0.54191085]
[1772752382146,0.57479799,2080.1,2079.7,0.54191085]
[1772752387155,8.36079799,2080.1,2079.7,0.54191085]
[1772752390356,0.57479799,2080.1,2079.7,0.54191085]
[1772752390750,8.36551025,2080.5,2080.1,0.54191085]
[1772752390958,0.57051025,2080.4,2080.0,0.54191085]
[1772752391256,0.57051025,2080.4,2079.9,41.34191085]
[1772752391456,0.57051025,2080.4,2080.0,0.54191085]
[1772752391657,0.57664338,2080.4,2080.0,0.54615011]
[1772752396460,0.57664338,2080.4,2080.0,0.00423926]
[1772752396960,0.57051025,2080.3,2079.4,8.48447666]
[1772752397153,0.57051025,2080.3,2079.6,2.44211184]
[1772752397350,0.57051025,2080.3,2079.7,0.54191085]
[1772752397550,0.00613313,2080.4,2079.9,0.54191085]
[1772752397758,0.57051025,2080.6,2080.1,0.54191085]
[1772752398658,0.57444108,2080.6,2080.1,0.54759671]
[1772752399659,0.57444108,2080.6,2080.1,0.00568586]
[1772752401359,0.57444108,2080.6,2080.1,0.54759671]
[1772752401563,8.38851025,2080.5,2080.1,0.54759671]
[1772752401862,0.57051025,2080.4,2080.1,0.54759671]
[1772752402861,0.57051025,2080.4,2080.1,0.00568586]
[1772752404864,0.00393083,2080.6,2080.3,0.54191085]
[1772752405068,0.57051025,2080.6,2080.3,0.54191085]
[1772752405260,0.57051025,2080.6,2080.2,0.54191085]
[1772752405461,0.57051025,2080.5,2080.1,0.00568586]
[1772752405963,0.57617795,2080.5,2080.1,0.00568586]
[1772752410664,0.57617795,2080.5,2079.7,6.63163299]
[1772752410868,0.57617795,2080.5,2079.8,0.58926817]
[1772752411569,0.57617795,2080.5,2079.8,0.59335541]
[1772752411972,0.57617795,2080.5,2079.9,0.58926817]
[1772752413471,0.5650363,2080.3,2079.8,0.59335541]
[1772752426678,0.0056677,2080.5,2079.8,0.59335541]
[1772752426882,0.0056677,2080.5,2079.9,0.58926817]
[1772752427073,0.570704,2080.5,2079.9,0.58926817]
[1772752429082,0.0056677,2080.5,2079.9,0.58926817]
[1772752429277,0.570704,2080.5,2079.9,0.58926817]
[1772752439884,0.56220039,2080.4,2079.8,6.04645206]
[1772752440186,0.56220039,2080.2,2079.6,6.04236482]
[1772752440386,0.56220039,2080.1,2079.5,6.60152239]
[1772752440590,0.56220039,2080.1,2079.6,0.55915757]
[1772752441287,0.56220039,2080.1,2079.6,0.56517696]
[1772752443589,0.56220039,2080.4,2079.6,0.56517696]
[1772752443788,0.56220039,2080.4,2079.7,0.55915757]
[1772752450094,0.56220039,2080.2,2079.7,0.55915757]
[1772752451696,0.56220039,2080.3,2079.7,0.55915757]
[1772752455804,0.56786809,2080.5,2079.7,0.55915757]
[1772752456002,0.56220039,2080.4,2079.7,0.55915757]
[1772752462008,0.56220039,2080.2,2079.6,0.00601939]
[1772752462204,0.56220039,2080.2,2079.6,0.56517696]
[1772752463208,0.56220039,2080.2,2079.6,6.60754178]
[1772752463408,0.56220039,2080.2,2079.7,0.55915757]
[1772752464704,0.56220039,2079.8,2079.6,9.39e-06]
[1772752464909,0.56220039,2079.8,2079.3,0.55915757]
[1772752465608,0.56220039,2079.8,2079.2,0.55915757]
[1772752465808,0.56220039,2079.8,2079.2,0.56514179]
[1772752470611,0.59116437,2079.6,2079.2,0.00598422]
[1772752470814,0.59116437,2079.6,2078.7,0.56579598]
[1772752471116,0.59116437,2079.4,2078.7,0.56579598]
[1772752471716,0.59116437,2079.4,2078.7,0.57017303]
[1772752472116,0.59116437,2079.4,2078.7,0.4186971]
[1772752472618,0.59116437,2079.3,2078.7,0.00437705]
[1772752476224,0.59116437,2079.3,2078.7,0.57017303]
[1772752476421,7.839,2079.4,2078.7,0.57017303]
[1772752476622,0.59116437,2079.3,2078.7,0.57017303]
[1772752481223,0.59116437,2079.6,2079.0,0.56579598]
[1772752481427,0.59116437,2079.4,2079.0,0.56579598]
[1772752490536,0.59116437,2079.6,2079.0,0.56579598]
[1772752490842,0.59116437,2079.8,2079.0,0.56579598]
[1772752491143,0.59116437,2079.6,2079.0,41.36579598]
[1772752491738,0.59116437,2079.6,2079.0,0.56579598]
[1772752495043,0.59116437,2079.6,2079.2,0.56579598]
[1772752495442,0.59116437,2079.7,2079.2,0.56579598]
[1772752497342,0.59116437,2079.8,2079.2,0.56579598]
[1772752500642,8.64773571,2079.9,2079.4,0.58187202]
[1772752500842,0.56434571,2079.8,2079.4,0.58187202]
[1772752501042,8.64773571,2079.9,2079.4,0.58187202]
[1772752501240,0.56434571,2079.8,2079.4,0.58187202]
[1772752502538,0.56434571,2079.8,2079.2,0.58187202]
[1772752512450,0.56434571,2079.6,2079.2,0.58187202]
[1772752513652,0.56434571,2079.6,2078.9,0.58187202]
[1772752513850,0.2404,2079.7,2079.0,0.58187202]
[1772752514049,0.80474571,2079.7,2079.0,0.58187202]
[1772752517851,0.56434571,2079.6,2079.0,0.58187202]
[1772752529764,0.78839507,2079.7,2079.2,0.59091851]
[1772752530165,0.2404,2079.7,2079.2,0.59091851]
[1772752530465,0.78839507,2079.7,2079.2,0.59091851]
[1772752532664,2.44325276,2079.5,2079.1,0.5822122]
[1772752532864,0.57413869,2079.5,2079.1,0.5822122]
[1772752533364,0.57413869,2079.6,2079.1,0.5822122]
[1772752537575,0.57413869,2079.4,2079.0,0.5822122]
[1772752538475,0.81456869,2079.5,2079.0,0.5822122]
[1772752542181,0.57413869,2079.5,2079.0,0.5822122]
[1772752560603,0.58072912,2079.7,2079.0,0.5822122]
[1772752561099,0.58072912,2079.8,2079.0,0.5822122]
[1772752563208,0.58072912,2079.8,2079.0,0.5822122]
[1772752564504,0.24038,2079.9,2079.0,0.5822122]
[1772752564706,0.82110912,2079.9,2079.0,0.5822122]
[1772752565602,0.58072912,2079.8,2079.0,0.5822122]
[1772752573413,11.9205898,2080.2,2079.0,0.5822122]
[1772752573414,4.0265898,2080.2,2079.2,0.55653724]
[1772752573615,0.58072912,2080.2,2079.5,0.55653724]
[1772752573809,0.58072912,2080.0,2079.2,0.55653724]
[1772752578121,5.41401281,2079.9,2079.2,0.55653724]
[1772752578321,0.58072912,2079.8,2079.2,0.55653724]
[1772752580820,0.58072912,2079.8,2079.1,0.55653724]
[1772752581020,0.58072912,2079.8,2079.0,30.85153724]
[1772752583321,0.58072912,2079.8,2079.0,0.55653724]
[1772752586924,0.58072912,2079.6,2079.0,0.55653724]
[1772752589022,0.58072912,2079.9,2079.0,0.55653724]
[1772752589222,0.58072912,2079.7,2079.0,8.10574851]
[1772752589424,0.58072912,2079.7,2079.0,0.55653724]
[1772752590027,0.58702599,2079.5,2078.9,0.5739125]
[1772752591628,0.58702599,2079.3,2078.7,0.00437705]
[1772752591926,0.58702599,2079.3,2078.5,0.5739125]
[1772752592229,0.58702599,2079.3,2078.6,40.8]
[1772752592829,0.58702599,2079.3,2078.6,0.57965274]
[1772752599133,0.58702599,2079.1,2078.6,0.00574024]
[1772752600932,0.58702599,2079.1,2078.6,0.57965274]
[1772752602343,0.58702599,2079.1,2078.6,0.00574024]
[1772752602845,0.58702599,2079.1,2078.6,0.57965274]
[1772752603042,0.58702599,2079.1,2078.6,0.00574024]
[1772752604445,0.58702599,2079.1,2078.6,0.57965274]
[1772752605642,0.82748599,2079.2,2078.6,0.57965274]
[1772752606742,0.58702599,2079.1,2078.6,0.00574024]
[1772752607746,0.58702599,2079.1,2078.6,0.57965274]
[1772752622958,0.24046,2079.2,2078.7,0.57850631]
[1772752623164,0.80966578,2079.2,2078.7,0.57850631]
[1772752623360,0.56920578,2079.1,2078.7,0.57850631]
[1772752626969,0.80966578,2079.2,2078.7,0.57850631]
[1772752628469,0.56920578,2079.2,2078.9,0.57850631]
[1772752628660,0.56920578,2079.4,2078.9,0.57850631]
[1772752628864,5.42928034,2079.3,2078.9,0.57850631]
[1772752629066,0.56920578,2079.4,2078.9,0.57850631]
[1772752631070,0.56920578,2079.4,2079.1,0.57850631]
[1772752631272,0.56920578,2079.4,2078.9,2.54548676]
[1772752631468,0.56920578,2079.4,2079.0,0.57850631]
[1772752636871,8.71662578,2079.6,2079.0,0.57850631]
[1772752637069,5.99508619,2079.5,2079.2,0.57850631]
[1772752637268,0.56920578,2079.5,2079.2,0.57850631]
[1772752637871,7.924,2079.7,2079.4,0.57850631]
[1772752638070,8.49320578,2079.7,2079.4,0.57850631]
[1772752638471,8.49320578,2079.7,2079.3,2.54548676]
[1772752638672,0.56920578,2079.6,2079.3,3.12399307]
[1772752638872,8.49320578,2079.7,2079.4,0.57850631]
[1772752639273,8.49320578,2079.7,2079.3,2.54548676]
[1772752639574,8.50120578,2079.7,2079.4,0.57850631]
[1772752640475,0.56920578,2079.7,2079.3,3.12399307]
[1772752640670,8.50420578,2079.7,2079.3,3.12399307]
[1772752641570,0.56920578,2079.7,2079.3,3.12399307]
[1772752641769,0.56920578,2079.6,2079.3,3.12399307]
[1772752642771,0.56920578,2079.9,2079.4,0.57850631]
[1772752642969,0.56920578,2079.9,2079.6,0.57850631]
[1772752644477,0.56920578,2079.9,2079.5,3.12399307]
[1772752646877,0.56920578,2079.9,2079.5,0.57850631]
[1772752647775,8.75157578,2080.0,2079.6,0.57850631]
[1772752648181,0.56920578,2079.9,2079.6,0.57850631]
[1772752651479,0.24037,2080.0,2079.6,0.57850631]
[1772752651787,0.54363504,2080.2,2079.8,0.56976443]
[1772752659693,0.54363504,2080.3,2079.8,0.56976443]
[1772752660787,0.54363504,2080.3,2079.7,0.56976443]
[1772752660992,0.54363504,2079.9,2079.5,0.56976443]
[1772752665186,0.24036,2080.1,2079.5,0.56976443]
[1772752665386,0.54363504,2080.0,2079.5,0.56976443]
[1772752665891,0.24036,2080.1,2079.5,0.56976443]
[1772752666193,0.54363504,2080.4,2079.6,0.56976443]
[1772752666990,0.0056677,2080.5,2079.7,2.54353595]
[1772752667292,0.54930274,2080.5,2079.8,0.56976443]
[1772752669291,0.0056677,2080.5,2079.8,0.56976443]
[1772752680707,0.55314653,2080.5,2079.8,0.56976443]
[1772752682812,0.0056677,2080.5,2079.8,0.56976443]
[1772752686916,0.55314653,2080.5,2079.8,0.56976443]
[1772752692918,0.0056677,2080.5,2079.8,0.56976443]
[1772752696219,0.55314653,2080.5,2079.8,0.56976443]
[1772752700122,5.97307942,2080.4,2079.8,0.56976443]
[1772752700424,0.54747883,2080.4,2079.8,0.56976443]
[1772752702926,0.55314653,2080.5,2079.8,0.56976443]
[1772752703121,0.0056677,2080.5,2079.8,0.56976443]
[1772752703425,0.55314653,2080.5,2079.8,0.56976443]
[1772752711532,0.59457423,2080.4,2079.8,0.56976443]
[1772752713134,0.0056677,2080.5,2079.8,0.56976443]
[1772752713327,0.60024193,2080.5,2079.8,0.56976443]
[1772752714132,0.0056677,2080.5,2079.8,0.56976443]
[1772752714432,0.0056677,2080.5,2079.8,8.1189757]
[1772752714731,0.0056677,2080.5,2079.9,0.54706532]
[1772752715136,0.59457423,2080.9,2080.2,0.54706532]
[1772752716030,0.59970615,2080.9,2080.2,0.55129816]
[1772752716930,0.00513192,2080.9,2080.2,0.55129816]
[1772752717136,0.00513192,2080.9,2080.4,0.54706532]
[1772752717340,0.59457423,2081.1,2080.4,0.54706532]
[1772752718436,0.60017732,2081.1,2080.4,0.54706532]
[1772752718636,0.60017732,2081.1,2080.5,0.54706532]
[1772752720939,0.00560309,2081.1,2080.5,0.54706532]
[1772752721144,0.60017732,2081.1,2080.5,0.54706532]
[1772752724545,0.59457423,2081.0,2080.5,0.54706532]
[1772752729539,3.13534934,2080.7,2080.4,41.34706532]
[1772752729845,0.59457423,2080.7,2080.4,0.54706532]
[1772752731147,0.59457423,2080.6,2080.2,0.55129816]
[1772752741154,0.56628075,2080.8,2080.2,0.55129816]
[1772752742254,0.56628075,2080.9,2080.4,0.58359276]
[1772752742648,0.56628075,2081.0,2080.6,0.58359276]
[1772752743047,0.56628075,2080.7,2080.2,0.00423284]
[1772752743552,0.56628075,2080.7,2080.2,0.5878256]
[1772752743852,0.56628075,2080.5,2080.2,0.00423284]
[1772752745558,0.56628075,2080.5,2080.2,0.5878256]
[1772752747661,0.56628075,2080.5,2080.0,0.58359276]
[1772752748759,0.56628075,2080.5,2080.0,0.5870351]
[1772752749358,0.56628075,2080.3,2080.0,0.00344234]
[1772752749753,0.56628075,2080.1,2079.8,0.58359276]
[1772752749950,0.56628075,2080.1,2079.8,41.38359276]
[1772752750558,0.56628075,2080.1,2079.8,0.58359276]
[1772752750754,0.56628075,2080.1,2079.8,0.00429319]
[1772752751159,0.56628075,2080.2,2079.8,0.58788595]
[1772752758665,0.56628075,2080.5,2079.9,0.58359276]
[1772752765666,0.56628075,2080.3,2079.9,0.58359276]
[1772752768372,0.56628075,2080.5,2080.1,0.58359276]
[1772752773479,14.82897138,2080.9,2080.1,0.58359276]
[1772752773480,0.58728681,2080.8,2080.1,0.58359276]
[1772752773680,0.58728681,2080.8,2080.3,0.54759564]
[1772752793192,8.02060309,2081.1,2080.3,0.54759564]
[1772752793397,0.58728681,2081.1,2080.8,0.54759564]
[1772752793691,0.58728681,2081.2,2080.4,0.54759564]
[1772752794294,0.58728681,2081.2,2080.5,0.54759564]
[1772752794496,0.59126712,2081.2,2080.5,0.54759564]
[1772752795490,0.58728681,2081.7,2081.0,0.54759564]